Cogmind - Beta 13 @@@ ROGUE MODE // 2024.04.03 @ 22:10:59 Player: ConfusedWizard Result: Self-destructed Performance ------------- Evolutions (1) 500 Regions Visited (2) 400 Robots Destroyed (26) 130 Value Destroyed (505) 505 Prototype IDs (0) 0 Alien Tech Used (0) 0 Bonus (0) 0 TOTAL SCORE: 1535 Bonus ------- None Cogmind --------- Core Integrity 227/400 Matter 300/300 Energy 250/250 System Corruption 0% Temperature Cool (89) Movement Walking (190) Ox1 Location -9/Materials Parts ------- > --- POWER (1) -------- Ion Engine > --- PROPULSION (4) --- Aluminum Leg Wheel > --- UTILITY (2) ------ Medium Storage Unit Improved Targeting Computer > --- WEAPON (2) ------- (None) > --- INVENTORY (10) --- Light Ion Engine Sensor Array Improved Targeting Computer Improved Targeting Computer Improved Targeting Computer Light Armor Plating Particle Gun Peak State ------------ > --- POWER ------------ Ion Engine > --- PROPULSION ------- Aluminum Leg Aluminum Leg Aluminum Leg Aluminum Leg > --- UTILITY ---------- Medium Storage Unit Improved Targeting Computer > --- WEAPON ----------- Heavy EM Pulse Gun Heavy EM Pulse Gun > --- INVENTORY -------- Light Ion Engine Sensor Array Improved Targeting Computer Improved Targeting Computer Improved Targeting Computer EM Pulse Gun EM Pulse Gun [Rating: 13] Favorites ----------- Power Ion Engine Engine Ion Engine Propulsion Aluminum Leg Leg Aluminum Leg Wheel Wheel Utility Medium Storage Unit Device Sensor Array Storage Medium Storage Unit Processor Improved Targeting Computer Weapon Heavy EM Pulse Gun Energy Gun Heavy EM Pulse Gun Build | -11 -10 -9 ------- Run | Yrd Mat Mat Slots Evolved 2 | . . 2 Power . | . . . Propulsion 2 | . . 2 Utility . | . . . Weapon . | . . . Parts Attached 21 | 6 8 7 Power 2 | 1 . 1 Engine 2 | 1 . 1 Core . | . . . Reactor . | . . . Propulsion 5 | 2 . 3 Treads . | . . . Leg 4 | 2 . 2 Wheel 1 | . . 1 Hover . | . . . Flight . | . . . Utility 4 | 1 3 . Device 1 | . 1 . Storage 2 | 1 1 . Processor 1 | . 1 . Hackware . | . . . Protection . | . . . Artifact . | . . . Weapon 10 | 2 5 3 Energy Gun 10 | 2 5 3 Energy Cannon . | . . . Ballistic Gun . | . . . Ballistic Cannon . | . . . Launcher . | . . . Special Weapon . | . . . Impact Weapon . | . . . Slashing Weapon . | . . . Piercing Weapon . | . . . Special Melee Weapon . | . . . Unidentified Prototypes . | . . . Parts Lost 10 | . 3 7 Power . | . . . Propulsion 3 | . . 3 Utility . | . . . Weapon 7 | . 3 4 Highest Loss Streak 5 | . 2 5 To Critical Strikes . | . . . Average Slot Usage (%) 95 | . 98 87 Engine 12 | . 14 10 Leg 29 | . 28 34 Device 4 | . 6 . Storage 13 | . 14 11 Processor 8 | . 7 11 Energy Gun 25 | . 27 19 Naked Turns . | . . . Heaviest Build 22 | 14 22 21 Greatest Support 40 | 20 20 40 Greatest Overweight (x) 1 | . 1 1 Average Overweight (x) . | . . . Largest Inventory Capacity 10 | 8 10 10 Average Capacity 9 | 7 9 10 Most Carried 10 | 2 10 9 Average Carried 6 | 1 6 7 Final Capacity 10 | 8 10 10 Final Carried 8 | 1 8 7 Class Distribution -------------------- 100% | Mutant Dominant Class ---------------- Mutant | -10/Materials Mutant | -9/Materials Resources | -11 -10 -9 ----------- Run | Yrd Mat Mat Matter Collected 367 | . 141 226 Remotely . | . . . Salvage Created 819 | 130 231 458 Parts 52 | 1 24 27 Haulers Intercepted . | . . . Recyclers Shooed 1 | . 1 . Parts Field Recycled . | . . . Retrieved Matter . | . . . Parts Self-Destructed . | . . . Prevented . | . . . Kills | -11 -10 -9 ------- Run | Yrd Mat Mat Combat Hostiles Destroyed 17 | . 9 8 Guns 11 | . 5 6 AOE 4 | . 4 . Classes Destroyed 8 | 2 4 2 Worker 2 | . 1 1 Tunneler 1 | 1 . . Recycler 1 | 1 . . Operator 1 | . 1 . Watcher 4 | . 3 1 Swarmer 9 | . 9 . Grunt 6 | . . 6 Sentry 2 | . . 2 Best Kill Streak 4 | 2 4 3 Combat Bots Only 3 | . 3 2 Max Kills in Single Turn 2 | 1 2 1 Gunslinging . | . . . Exploded 2 | . 2 . Melee . | . . . Uniques/NPCs Destroyed . | . . . Combat | -11 -10 -9 -------- Run | Yrd Mat Mat Hostile Shots Fired 147 | . 72 75 Missed 45 | . 25 20 Damage Taken 1177 | 22 416 739 Core 275 | . 102 173 Absorbed by Shields . | . . . Regen/Repaired (Parts) 87 | . . 87 Core Remaining (%) 79 | 100 59 . Volleys Fired 69 | 10 26 33 Largest 2 | 2 2 2 Hottest 90 | 80 90 90 Shots Fired 126 | 20 52 54 Gun 126 | 20 52 54 Cannon . | . . . Launcher . | . . . Special . | . . . Kinetic . | . . . Thermal . | . . . Explosive . | . . . Electromagnetic 126 | 20 52 54 Robot Hit Streak 12 | 4 6 12 Robot Miss Streak 5 | 3 4 5 Penetration Max . | . . . Secondary Targets 2 | . 2 . Max Gunslinging Chain 1 | . 1 . Shots Hit Robots 80 | 12 29 39 Core Hits 32 | 3 15 14 Critical Kills . | . . . Critical Parts Destroyed . | . . . Critical Strikes 2 | . . 2 Corrupt 2 | . . 2 Melee Attacks . | . . . Impact . | . . . Slashing . | . . . Piercing . | . . . Sneak Attacks . | . . . Combat Hostiles . | . . . Follow-up Attacks . | . . . Damage Inflicted 1712 | 181 744 787 Guns 1232 | 161 492 579 Cannons . | . . . Explosions 477 | 20 249 208 Melee . | . . . Ramming 3 | . 3 . Kinetic . | . . . Thermal 477 | 20 249 208 Explosive . | . . . Electromagnetic 1232 | 161 492 579 Impact . | . . . Slashing . | . . . Piercing . | . . . Highest Corruption . | . . . Average Corruption . | . . . Corruption Purged . | . . . Corruption Blocked . | . . . Overload Shots . | . . . Overflow Damage 15 | . 7 8 Projectiles . | . . . Explosions 15 | . 7 8 Melee . | . . . Knockbacks . | . . . Impact . | . . . Kinetic . | . . . Secondary . | . . . Self-Inflicted Damage 126 | 22 30 74 Shots 4 | 1 1 2 Rammed . | . . . Targets Rammed 2 | . 2 . Kicked 2 | . 2 . Crushed . | . . . Highest Temperature 184 | 72 180 184 Average Temperature 51 | 24 51 59 Received Heat Transfer 363 | . . 363 Siege Activations . | . . . Robots Corrupted 3 | . 1 2 Combat Hostiles 2 | . . 2 Parts Fried 9 | 2 3 4 Impact Corruptions . | . . . Robots Melted . | . . . Combat Hostiles . | . . . Parts Melted . | . . . Heat Transferred 650 | 50 350 250 Parts Sabotaged . | . . . Parts Stolen . | . . . Parts Stripped . | . . . Power Chain Reactions 6 | 1 3 2 Alert | -11 -10 -9 ------- Run | Yrd Mat Mat Peak Influence 317 | 10 146 317 Initial 50 | . 6 50 Average 90 | 2 73 155 Maximum Alert Level 1 | . . 1 Low Security (%) 94 | 100 100 80 Level 1 5 | . . 19 Level 2 . | . . . Level 3 . | . . . Level 4 . | . . . Level 5 . | . . . High Security . | . . . Max Security . | . . . Squads Dispatched 1 | . . 1 Investigation 1 | . . 1 Extermination . | . . . Reinforcement . | . . . Assault . | . . . Garrison . | . . . Intercept . | . . . Searches Triggered . | . . . Construction Impeded . | . . . Haulers Reinforced . | . . . Active Scanning Responses . | . . . Cargo Convoy Interrupts . | . . . Stealth | -11 -10 -9 --------- Run | Yrd Mat Mat Distress Signals . | . . . Communications Jammed . | . . . Distress Signals . | . . . Times Spotted 31 | . 13 18 Peak Tracking Total 7 | . 4 7 Tactical Retreats 1 | . . 1 Traps | -11 -10 -9 ------- Run | Yrd Mat Mat Traps Triggered 1 | . 1 . Indirectly . | . . . Trap Hack Attempts . | . . . Triggered . | . . . Disarmed . | . . . Reprogrammed . | . . . Reused . | . . . Traps Extracted . | . . . Installed . | . . . Triggered . | . . . Machines | -11 -10 -9 ---------- Run | Yrd Mat Mat Machines Disabled . | . . . Max in Single Turn . | . . . Machines Repaired . | . . . Machines Dismantled . | . . . Machines Sabotaged . | . . . Overloaded Fab Kills . | . . . Hacking | -11 -10 -9 --------- Run | Yrd Mat Mat Machines Accessed 4 | . 1 3 Terminals 2 | . 1 1 Fabricators . | . . . Repair Stations 2 | . . 2 Recycling Units . | . . . Scanalyzers . | . . . Garrison Access . | . . . Total Hacks 12 | . 1 11 Successful 8 | . . 8 Failed 4 | . 1 3 Catastrophic 1 | . . 1 Database Lockouts . | . . . Manual . | . . . Terminals 4 | . 1 3 Fabricators . | . . . Repair Stations 8 | . . 8 Recycling Units . | . . . Scanalyzers . | . . . Garrison Access . | . . . Terminal Hacks 2 | . . 2 Record 2 | . . 2 Fabricator Hacks . | . . . Repair Station Hacks 6 | . . 6 Scan Component 4 | . . 4 Repair 2 | . . 2 Recycling Unit Hacks . | . . . Scanalyzer . | . . . Garrison Access Hacks . | . . . Unauthorized Hacks . | . . . Terminals . | . . . Fabricators . | . . . Repair Stations . | . . . Recycling Units . | . . . Scanalyzers . | . . . Garrison Access . | . . . Data Cores Recovered 1 | . 1 . Used . | . . . Hacking Detections 3 | . . 3 Full Trace Events 2 | . . 2 Feedback Events . | . . . Feedback Blocked . | . . . Robot Schematics Acquired . | . . . Robots Built . | . . . Authchips . | . . . Time . | . . . Total Robot Build Rating . | . . . Part Schematics Acquired . | . . . Parts Built . | . . . Authchips . | . . . Time . | . . . Total Part Build Rating . | . . . Parts Repaired 2 | . . 2 Time 58 | . . 58 Parts Recycled . | . . . Recycled Matter . | . . . Retrieved Matter . | . . . Retrieved Components . | . . . Parts Scanalyzed . | . . . Part Schematics Acquired . | . . . Parts Damaged . | . . . Bothacking | -11 -10 -9 ------------ Run | Yrd Mat Mat Used RIF Installer . | . . . Robots Hacked . | . . . Non-combat . | . . . Combat . | . . . Robot Hacks Applied . | . . . Relay Couplers Released . | . . . Fabnet Peak Effective % . | . . . Robots Rewired . | . . . Allies Hacked . | . . . Hacks Repelled . | . . . Allies | -11 -10 -9 -------- Run | Yrd Mat Mat Total Allies . | . . . Largest Group . | . . . Highest-Rated Group . | . . . Highest-Rated Ally . | . . . Total Orders . | . . . Ally Attacks . | . . . Total Damage . | . . . Kills . | . . . Allies Corrupted . | . . . Allies Melted . | . . . Intel | -11 -10 -9 ------- Run | Yrd Mat Mat Robot Analysis Total . | . . . Derelict Logs Recovered . | . . . Drone Launches . | . . . Drone Recoveries . | . . . Exploration | -11 -10 -9 ------------- Run | Yrd Mat Mat Turns Passed 1413 | 90 943 380 Spaces Moved 703 | 41 511 151 Core 2 | 2 . . Treads . | . . . Legs 701 | 39 511 151 Wheels . | . . . Hover . | . . . Flight . | . . . Fastest Speed 50 | 50 120 120 Average Speed 156 | 116 164 140 Slowest Speed 190 | 120 190 190 Overloaded Moves . | . . . Propulsion Burnouts . | . . . Robots Hopped . | . . . Cave-ins Triggered . | . . . Exploration Rate (%) 34 | 3 85 14 Regions Visited 2 Branch Regions . Pre-discovered Areas . | . . . Known Exits Taken . | . . . Unknown Exits Taken 2 | 1 1 . Scrap Searched . | . . . Spaces Dug . | . . . Terrain Destroyed 22 | 6 10 6 Melee . | . . . Projectile . | . . . AOE 22 | 6 10 6 Terrain Rammed . | . . . Walls Destroyed . | . . . Machines Disabled . | . . . Actions | -11 -10 -9 --------- Run | Yrd Mat Mat Total 886 | 63 559 264 Wait 67 | . 2 65 Move 701 | 40 510 151 Hop . | . . . Pick Up 25 | 7 11 7 Fast Attach . | . . . Attach 17 | 6 4 7 Detach . | . . . Swap 4 | . 4 . Drop 1 | . . 1 Fire 69 | 10 26 33 Melee . | . . . Ram . | . . . Kick 2 | . 2 . Crush . | . . . Escape Stasis . | . . . Rewire . | . . . Trap . | . . . Miscellaneous . | . . . Route ------- -11/Scrapyard -10/Materials (discovered 4 exits: *Mat x2 / [*Min x2]) -9/Materials History --------- Turn | Location | Event 31 | -11/Scrapyard | Discovered new exit (range 13) 91 | -11/Scrapyard | Entered Materials 303 | -10/Materials | Build established: Mutant 498 | -10/Materials | Discovered new exit (range 9) 673 | -10/Materials | Discovered new exit (range 5) 675 | -10/Materials | Discovered new exit (range 14) 993 | -10/Materials | Discovered new exit (range 15) 1034 | -10/Materials | Entered another Materials area 1034 | -9/Materials | Evolved 2 slots: Propulsion x2 1191 | -9/Materials | Repaired Ion Engine 1261 | -9/Materials | Repaired Hvy. EM Pulse Gun 1414 | -9/Materials | Self-destructed Last Messages --------------- Aluminum Leg fried. Door malfunctions. Acquired 10 matter. Acquired Wheel. Acquired 18 matter. G-34 Mercenary destroyed. Chain reaction triggered in Lgt. Nuclear Core. Hvy. EM Pulse Gun destroyed. Destroyed Hvy. EM Pulse Gun. W-16 Scout destroyed. Aluminum Leg destroyed. G-47 Trooper IFF system glitched. EM Pulse Gun destroyed. G-47 Trooper system terminally corrupted. Chain reaction triggered in Ion Engine. EM Pulse Gun destroyed. Destroyed EM Pulse Gun. K-01 Serf collects debris. Acquired Corrupted Particle Gun. K-01 Serf collects debris. Map ----- +----------------------------------------------------+ | ????????# #?########???????????????????????????? | | ?? ????# #?# |#???????????????????????????? | | # "??# #?# """ #???????????????????????????? | | # """# ### """ #???????????????????????????? | | # + + """ #??? ???????????????????????? | | # """# ### """ #??? ?????????????????????? | | # "??## ##?# """ #??? ?????????????????????? | | ?? ?????# #??# #??? ?????????????????????? | | ?????????# #??# """ #?? #?????????????????????? | | ?????????# #??# """ #?? #?????????????????????? | | ?????????# #??# """ #?? #?????????????????????? | | ?????????#!#??# """ #?? #?????????????????????? | | ?????????# #??# """ #?? ??????????????????????? | | ?????????# #??# #?? ??????????????????????? | | ?????????# #####+####### #?????????????????????? | | ?????????# ## #?????????????????????? | | ########?# ## #?????????????????????? | | # #?# ## #?????????????????????? | | # """#?# ############+#######??????????????????? | | # R"#?# #????????# #??????????????????? | | # """### ###??????# """ #??????????????????? | | # # #??????# "R" """ #?????????? ???????? | | # """ # ######## " " """ #?########/#???????? | | # """ +[[T /| """ ## ????????? | | # """ # % ######## =]= ## ????????? | | # # * #??????#*g= @ ## ?????????? | | # """!###+####?????#= g[% ## ???????? | | # """[#= #?????# ;###### ^ "???????? | | # """!# """ #????##;a#;##????# """ "???????? | | # ==[# """ #????# = ####### "Y """"????? | | ######%# """ #????# k """ ?? | | ?????### #????# ! ?? | | ???????# #????# ?? | | ???????########????# ###########"""T"""##????? | | ???????????????????#######????????????####???????? | | ?????????????????????????????????????????????????? | | ?????????????????????????????????????????????????? | | ?????????????????????????????????????????????????? | | ?????????????????????????????????????????????????? | | ?????????????????????????????????????????????????? | | ?????????????????????????????????????????????????? | | ?????????????????????????????????????????????????? | | ?????????????????????????????????????????????????? | | ?????????????????????????????????????????????????? | | ?????????????????????????????????????????????????? | | ?????????????????????????????????????????????????? | | ?????????????????????????????????????????????????? | | ?????????????????????????????????????????????????? | | ?????????????????????????????????????????????????? | | ?????????????????????????????????????????????????? | +----------------------------------------------------+ Best States ------------- Heat Dissipation 28 Energy Generation 10 Energy Capacity 250 Matter Stores 300 Matter Capacity 300 Sight Range 16 Robot Scan Range 14 Terrain Scan Density 10 Evasion (%) 55 Targeting Accuracy 6 Item Schematics ----------------- None Robot Schematics ------------------ None Fabricated ------------ Nothing Alien Tech Used ----------------- None Achievements -------------- Power Corrupts Challenges ------------ None Game ------ Seed PhaseCatalystExtractor Manual? 0 Play Time 00:15:34 Cumulative 1.4 hours Start 2024.04.03 @ 21:22:13 End 2024.04.03 @ 22:10:59 Sessions 1 Manual Loads 0 Difficulty Rogue Special Mode None Game No. 8 Rogue 8 Adventurer 0 Explorer 0 Win Type - Total 0 Types 0/0/0/0/0/0/0/0/0 Lore% 2 Gallery% 5 Achievement% 4 Wizard Run 0 Options --------- Layout 1 ASCII 0 Keyboard 0 Movement Mouse Keybinds 0 Fullscreen 1 Font 32/SmallcapsGlow Map View 50x35 Zoom Use 0% Tactical HUD 0 Map Filters NONE Filters NONE Steam 1 RUN: 0cb43a62-69fa-4cd8-a5c0-11d5594680b5